[Event "Championnat d'Europe de Blitz"]
[Date "2024.12.09"]
[White "Korobov, Anton"]
[Black "Tsolakidou, Stavroula"]
[WhiteElo "2629"]
[BlackElo "2451"]
[Round "2.4"]
[Result "1-0"]
[TimeControl "180+2"]

1. c4 {[%emt 00:00:01] [%clk 00:03:03]} Nf6 {[%emt 00:00:04] [%clk 00:03:02]} 2.
Nc3 {[%clk 00:03:03]} e5 {[%emt 00:00:02] [%clk 00:03:02]} 3. Nf3 {[%emt
00:00:02] [%clk 00:03:03]} e4 {[%emt 00:00:02] [%clk 00:03:03]} 4. Ng5 {[%emt
00:00:01] [%clk 00:03:04]} c6 {[%emt 00:00:02] [%clk 00:03:04]} 5. Qa4 {[%emt
00:00:03] [%clk 00:03:02]} Qe7 {[%emt 00:00:09] [%clk 00:02:57]} 6. Qc2 {[%emt
00:00:07] [%clk 00:02:57]} b5 {[%emt 00:00:12] [%clk 00:02:47]} 7. cxb5 {[%emt
00:00:06] [%clk 00:02:53]} d5 {[%emt 00:00:04] [%clk 00:02:45]} 8. e3 {[%emt
00:00:07] [%clk 00:02:48]} h6 {[%emt 00:00:04] [%clk 00:02:43]} 9. Nh3 {[%clk
00:02:49]} Bxh3 {[%emt 00:00:28] [%clk 00:02:17]} 10. gxh3 {[%emt 00:00:01]
[%clk 00:02:49]} c5 {[%emt 00:00:04] [%clk 00:02:14]} 11. b3 {[%emt 00:00:22]
[%clk 00:02:29]} Nbd7 {[%emt 00:00:16] [%clk 00:02:01]} 12. Bb2 {[%emt 00:00:01]
[%clk 00:02:29]} Ne5 {[%emt 00:00:03] [%clk 00:01:59]} 13. O-O-O {[%emt
00:00:07] [%clk 00:02:25]} g6 {[%emt 00:00:02] [%clk 00:01:59]} 14. b6 {[%emt
00:00:16] [%clk 00:02:11]} Bg7 {[%emt 00:00:24] [%clk 00:01:36]} 15. Nxd5 {[%emt
00:00:26] [%clk 00:01:47]} Nxd5 {[%emt 00:00:08] [%clk 00:01:30]} 16. Qxe4
{[%emt 00:00:02] [%clk 00:01:47]} Nxb6 {[%emt 00:00:27] [%clk 00:01:06]} 17. f4
{[%emt 00:00:16] [%clk 00:01:33]} f5 {[%emt 00:00:06] [%clk 00:01:02]} 18. Qg2
{[%emt 00:00:03] [%clk 00:01:32]} Ned7 {[%emt 00:00:13] [%clk 00:00:51]} 19.
Qxg6+ {[%emt 00:00:03] [%clk 00:01:31]} Kf8 {[%emt 00:00:02] [%clk 00:00:51]}
20. Qxf5+ {[%emt 00:00:04] [%clk 00:01:28]} Qf7 {[%emt 00:00:07] [%clk
00:00:47]} 21. Bxg7+ {[%emt 00:00:30] [%clk 00:01:00]} Kxg7 {[%emt 00:00:02]
[%clk 00:00:46]} 22. Rg1+ {[%emt 00:00:13] [%clk 00:00:49]} Kf8 {[%emt 00:00:02]
[%clk 00:00:47]} 23. Qxf7+ {[%emt 00:00:08] [%clk 00:00:43]} Kxf7 {[%emt
00:00:02] [%clk 00:00:47]} 24. a4 {[%emt 00:00:08] [%clk 00:00:37]} a5 {[%emt
00:00:04] [%clk 00:00:44]} 25. Bb5 {[%emt 00:00:07] [%clk 00:00:32]} Nf6 {[%emt
00:00:02] [%clk 00:00:44]} 26. Rg2 {[%emt 00:00:02] [%clk 00:00:33]} Rhg8 {[%emt
00:00:06] [%clk 00:00:41]} 27. Rdg1 {[%emt 00:00:02] [%clk 00:00:32]} Rxg2
{[%emt 00:00:02] [%clk 00:00:41]} 28. Rxg2 {[%emt 00:00:01] [%clk 00:00:33]} Rg8
{[%emt 00:00:08] [%clk 00:00:35]} 29. Rxg8 {[%emt 00:00:07] [%clk 00:00:28]}
Kxg8 {[%emt 00:00:01] [%clk 00:00:36]} 30. Kc2 {[%clk 00:00:29]} Kf7 {[%emt
00:00:05] [%clk 00:00:33]} 31. Kd3 {[%emt 00:00:03] [%clk 00:00:29]} Ke6 {[%emt
00:00:01] [%clk 00:00:34]} 32. e4 {[%emt 00:00:02] [%clk 00:00:29]} h5 {[%emt
00:00:14] [%clk 00:00:22]} 33. Ke3 {[%emt 00:00:03] [%clk 00:00:28]} h4 {[%emt
00:00:03] [%clk 00:00:21]} 34. d4 {[%emt 00:00:01] [%clk 00:00:29]} cxd4+ {[%emt
00:00:04] [%clk 00:00:19]} 35. Kxd4 {[%clk 00:00:30]} Nbd7 {[%emt 00:00:09]
[%clk 00:00:12]} 36. e5 {[%emt 00:00:04] [%clk 00:00:28]} Nh5 {[%emt 00:00:08]
[%clk 00:00:07]} 37. f5+ {[%clk 00:00:28]} Ke7 {[%emt 00:00:03] [%clk 00:00:07]}
38. f6+ {[%emt 00:00:04] [%clk 00:00:27]} Kd8 {[%emt 00:00:04] [%clk 00:00:05]}
39. Ke4 {[%emt 00:00:01] [%clk 00:00:26]} Nc5+ {[%emt 00:00:05] [%clk 00:00:03]}
40. Kf5 {[%clk 00:00:27]} Nxb3 {[%emt 00:00:02] [%clk 00:00:04]} 41. Ke4 {[%emt
00:00:05]} 1-0

[Site "Europe Echecs"]

[Event "Championnat d'Europe de Blitz"]
[Date "2024.12.09"]
[White "Zhukovskyi, Myhaylo"]
[Black "Safarli, Eltaj"]
[WhiteElo "2189"]
[BlackElo "2610"]
[Round "2.5"]
[Result "1-0"]
[TimeControl "180+2"]

1. Nf3 {[%emt 00:20:46] [%clk 00:03:03]} Nf6 {[%emt 00:00:02] [%clk 00:03:03]}
2. g3 {[%emt 00:00:01] [%clk 00:03:04]} g6 {[%clk 00:03:04]} 3. Bg2 {[%emt
00:00:01] [%clk 00:03:06]} Bg7 {[%clk 00:03:05]} 4. O-O {[%emt 00:00:01] [%clk
00:03:06]} O-O {[%emt 00:00:02] [%clk 00:03:06]} 5. d4 {[%emt 00:00:01] [%clk
00:03:08]} d5 {[%clk 00:03:07]} 6. c4 {[%clk 00:03:09]} c6 {[%emt 00:00:01]
[%clk 00:03:08]} 7. a4 {[%emt 00:00:01] [%clk 00:03:10]} a5 {[%emt 00:00:25]
[%clk 00:02:45]} 8. cxd5 {[%emt 00:00:01] [%clk 00:03:11]} Nxd5 {[%clk
00:02:46]} 9. e4 {[%emt 00:00:01] [%clk 00:03:12]} Nb4 {[%clk 00:02:47]} 10. Nc3
{[%clk 00:03:13]} Bg4 {[%emt 00:00:06] [%clk 00:02:44]} 11. Be3 {[%clk
00:03:15]} Nd7 {[%emt 00:00:31] [%clk 00:02:15]} 12. h3 {[%clk 00:03:16]} Bxf3
{[%emt 00:00:01] [%clk 00:02:16]} 13. Bxf3 {[%clk 00:03:17]} e6 {[%emt 00:00:01]
[%clk 00:02:17]} 14. Qd2 {[%emt 00:00:52] [%clk 00:02:26]} Qe7 {[%emt 00:00:04]
[%clk 00:02:14]} 15. e5 {[%emt 00:00:05] [%clk 00:02:24]} Nb6 {[%emt 00:00:08]
[%clk 00:02:09]} 16. Be2 {[%emt 00:00:26] [%clk 00:01:59]} Rad8 {[%emt 00:00:06]
[%clk 00:02:04]} 17. Qc1 {[%emt 00:00:18] [%clk 00:01:44]} f6 {[%emt 00:00:06]
[%clk 00:02:00]} 18. exf6 {[%emt 00:00:05] [%clk 00:01:41]} Bxf6 {[%clk
00:02:01]} 19. Rd1 {[%emt 00:00:07] [%clk 00:01:37]} Qg7 {[%emt 00:00:15] [%clk
00:01:48]} 20. Bh6 {[%emt 00:00:17] [%clk 00:01:21]} Qd7 {[%emt 00:00:08] [%clk
00:01:41]} 21. Bxf8 {[%emt 00:00:02] [%clk 00:01:22]} Rxf8 {[%emt 00:00:01]
[%clk 00:01:43]} 22. Ne4 {[%emt 00:00:13] [%clk 00:01:10]} Bg7 {[%emt 00:00:02]
[%clk 00:01:43]} 23. Bg4 {[%emt 00:00:13] [%clk 00:01:00]} Qf7 {[%emt 00:00:27]
[%clk 00:01:17]} 24. Qd2 {[%emt 00:00:08] [%clk 00:00:54]} Qe7 {[%emt 00:00:24]
[%clk 00:00:55]} 25. Qe2 {[%emt 00:00:06] [%clk 00:00:50]} h5 {[%emt 00:00:10]
[%clk 00:00:47]} 26. Bf3 {[%emt 00:00:05] [%clk 00:00:47]} N6d5 {[%clk
00:00:48]} 27. Bg2 {[%emt 00:00:04] [%clk 00:00:45]} b6 {[%emt 00:00:15] [%clk
00:00:36]} 28. Rac1 {[%emt 00:00:01] [%clk 00:00:46]} Bh6 {[%emt 00:00:04] [%clk
00:00:33]} 29. Rb1 {[%emt 00:00:04] [%clk 00:00:44]} Kh7 {[%emt 00:00:05] [%clk
00:00:31]} 30. Re1 {[%emt 00:00:03] [%clk 00:00:43]} h4 {[%emt 00:00:05] [%clk
00:00:28]} 31. Nc3 {[%emt 00:00:14] [%clk 00:00:31]} hxg3 {[%emt 00:00:02] [%clk
00:00:28]} 32. fxg3 {[%emt 00:00:01] [%clk 00:00:31]} Be3+ {[%clk 00:00:28]} 33.
Kh1 {[%emt 00:00:07] [%clk 00:00:27]} Rf2 {[%emt 00:00:05] [%clk 00:00:25]} 34.
Qg4 {[%emt 00:00:03] [%clk 00:00:27]} Nc2 {[%emt 00:00:15] [%clk 00:00:12]} 35.
Rf1 {[%emt 00:00:05] [%clk 00:00:23]} Bxd4 {[%emt 00:00:07] [%clk 00:00:08]} 36.
Rxf2 {[%emt 00:00:10] [%clk 00:00:14]} Bxf2 {[%emt 00:00:01] [%clk 00:00:09]}
37. Qe2 {[%emt 00:00:03] [%clk 00:00:12]} Nxc3 {[%emt 00:00:06] [%clk 00:00:06]}
38. bxc3 {[%emt 00:00:01] [%clk 00:00:13]} Na3 {[%clk 00:00:07]} 39. Rf1 {[%emt
00:00:09] [%clk 00:00:05]} Bxg3 {[%emt 00:00:02] [%clk 00:00:08]} 40. Qg4 {[%emt
00:00:03] [%clk 00:00:03]} Be5 {[%emt 00:00:04] [%clk 00:00:06]} 41. Be4 {[%emt
00:00:01] [%clk 00:00:04]} Qg7 {[%emt 00:00:04] [%clk 00:00:04]} 42. Qh5+ {[%emt
00:00:01] [%clk 00:00:05]} Kg8 {[%clk 00:00:06]} 43. Bxg6 {[%emt 00:00:02] [%clk
00:00:05]} Bf6 {[%emt 00:00:03] [%clk 00:00:05]} 44. Be4 {[%emt 00:00:02] [%clk
00:00:05]} Kf8 {[%emt 00:00:03] [%clk 00:00:05]} 45. Rg1 {[%emt 00:00:02] [%clk
00:00:04]} Qf7 {[%emt 00:00:02] [%clk 00:00:05]} 46. Qh6+ {[%emt 00:00:03] [%clk
00:00:03]} Ke7 {[%emt 00:00:01] [%clk 00:00:06]} 47. Rf1 {[%emt 00:00:01] [%clk
00:00:04]} Nc4 {[%emt 00:00:03] [%clk 00:00:05]} 48. Bg6 {[%emt 00:00:01] [%clk
00:00:04]} Qg7 {[%emt 00:00:03] [%clk 00:00:05]} 49. Qxg7+ {[%emt 00:00:01]
[%clk 00:00:05]} Bxg7 {[%clk 00:00:06]} 50. Rf7+ {[%clk 00:00:06]} Kd6 {[%clk
00:00:08]} 51. Rxg7 {[%emt 00:00:01] [%clk 00:00:07]} b5 {[%clk 00:00:09]} 52.
axb5 {[%emt 00:00:03] [%clk 00:00:05]} cxb5 {[%clk 00:00:11]} 53. Bd3 {[%emt
00:00:02] [%clk 00:00:05]} Ne5 {[%emt 00:00:06] [%clk 00:00:07]} 54. Bxb5 {[%emt
00:00:01] [%clk 00:00:06]} Kc5 {[%clk 00:00:08]} 55. Rg5 {[%emt 00:00:01] [%clk
00:00:06]} Kd6 {[%emt 00:00:03] [%clk 00:00:08]} 56. h4 {[%emt 00:00:02] [%clk
00:00:06]} Nf3 {[%clk 00:00:09]} 57. Rg4 {[%emt 00:00:02] [%clk 00:00:06]} Ne5
{[%emt 00:00:01] [%clk 00:00:10]} 58. Re4 {[%emt 00:00:03] [%clk 00:00:06]} Nf7
{[%clk 00:00:11]} 59. Bc4 {[%emt 00:00:02] [%clk 00:00:05]} Ne5 {[%emt 00:00:03]
[%clk 00:00:10]} 60. h5 {[%emt 00:00:03] [%clk 00:00:05]} a4 {[%emt 00:00:03]
[%clk 00:00:09]} 61. Ba2 {[%emt 00:00:02] [%clk 00:00:04]} a3 {[%clk 00:00:10]}
62. Ra4 {[%emt 00:00:01] [%clk 00:00:05]} Ke7 {[%emt 00:00:03] [%clk 00:00:09]}
63. Ra6 {[%emt 00:00:02] [%clk 00:00:06]} Ng4 {[%emt 00:00:02] [%clk 00:00:08]}
64. Rxe6+ {[%emt 00:00:02] [%clk 00:00:06]} Kf8 {[%clk 00:00:10]} 65. h6 {[%emt
00:00:02] [%clk 00:00:07]} Kf7 {[%emt 00:00:04] [%clk 00:00:07]} 66. Re4+ {[%emt
00:00:01] [%clk 00:00:07]} 1-0

[Site "Europe Echecs"]

[Event "Championnat d'Europe de Blitz"]
[Date "2024.12.09"]
[White "Deac, Bogdan-Daniel"]
[Black "Reprintsev, Alexander"]
[WhiteElo "2696"]
[BlackElo "2230"]
[Round "2.6"]
[Result "1-0"]
[TimeControl "180+2"]

1. Nf3 {[%emt 00:00:01] [%clk 00:03:02]} Nc6 {[%emt 00:00:03] [%clk 00:03:01]}
2. d4 {[%emt 00:00:03] [%clk 00:03:01]} d5 {[%clk 00:03:03]} 3. Bf4 {[%emt
00:00:04] [%clk 00:02:59]} Bg4 {[%clk 00:03:03]} 4. e3 {[%emt 00:00:14] [%clk
00:02:48]} e6 {[%emt 00:00:01] [%clk 00:03:04]} 5. c4 {[%emt 00:00:03] [%clk
00:02:47]} Bd6 {[%emt 00:00:21] [%clk 00:02:44]} 6. Bg3 {[%emt 00:00:02] [%clk
00:02:47]} Nf6 {[%emt 00:00:05] [%clk 00:02:42]} 7. Nc3 {[%emt 00:00:06] [%clk
00:02:43]} O-O {[%emt 00:00:01] [%clk 00:02:42]} 8. Rc1 {[%emt 00:00:18] [%clk
00:02:28]} Ne7 {[%emt 00:00:10] [%clk 00:02:34]} 9. Be2 {[%emt 00:00:13] [%clk
00:02:16]} c6 {[%emt 00:00:06] [%clk 00:02:31]} 10. Qc2 {[%emt 00:00:49] [%clk
00:01:28]} Nf5 {[%emt 00:00:08] [%clk 00:02:25]} 11. Bd3 {[%emt 00:00:24] [%clk
00:01:07]} Nxg3 {[%emt 00:00:07] [%clk 00:02:20]} 12. hxg3 {[%emt 00:00:01]
[%clk 00:01:08]} h6 {[%clk 00:02:21]} 13. Ne5 {[%emt 00:00:43] [%clk 00:00:26]}
Bxe5 {[%emt 00:00:05] [%clk 00:02:18]} 14. dxe5 {[%emt 00:00:02] [%clk
00:00:27]} dxc4 {[%clk 00:02:19]} 15. Bxc4 {[%emt 00:00:08] [%clk 00:00:22]} Nd5
{[%emt 00:00:13] [%clk 00:02:08]} 16. O-O {[%emt 00:00:18] [%clk 00:00:07]} Nxc3
{[%emt 00:00:09] [%clk 00:02:01]} 17. Qxc3 {[%emt 00:00:01] [%clk 00:00:07]} Qb6
{[%emt 00:00:10] [%clk 00:01:52]} 18. f3 {[%emt 00:00:02] [%clk 00:00:07]} Bf5
{[%emt 00:00:02] [%clk 00:01:53]} 19. Rfd1 {[%emt 00:00:02] [%clk 00:00:07]}
Rad8 {[%emt 00:00:01] [%clk 00:01:53]} 20. Kf2 {[%emt 00:00:02] [%clk 00:00:07]}
a5 {[%emt 00:00:10] [%clk 00:01:46]} 21. a3 {[%emt 00:00:02] [%clk 00:00:08]}
Bg6 {[%emt 00:00:04] [%clk 00:01:43]} 22. Be2 {[%emt 00:00:02] [%clk 00:00:08]}
Rd5 {[%emt 00:00:05] [%clk 00:01:40]} 23. Bc4 {[%emt 00:00:03] [%clk 00:00:06]}
Rdd8 {[%clk 00:01:41]} 24. Rd6 {[%emt 00:00:03] [%clk 00:00:05]} Rxd6 {[%emt
00:00:13] [%clk 00:01:31]} 25. exd6 {[%clk 00:00:07]} Rd8 {[%emt 00:00:02] [%clk
00:01:32]} 26. Rd1 {[%emt 00:00:03] [%clk 00:00:05]} c5 {[%emt 00:00:01] [%clk
00:01:33]} 27. Qd2 {[%emt 00:00:03] [%clk 00:00:04]} Qc6 {[%emt 00:00:03] [%clk
00:01:32]} 28. Qxa5 {[%emt 00:00:01] [%clk 00:00:05]} Rxd6 {[%emt 00:00:03]
[%clk 00:01:31]} 29. Bb5 {[%emt 00:00:02] [%clk 00:00:05]} Qb6 {[%emt 00:00:17]
[%clk 00:01:16]} 30. Qxb6 {[%emt 00:00:01] [%clk 00:00:05]} Rxb6 {[%emt
00:00:01] [%clk 00:01:17]} 31. a4 {[%clk 00:00:07]} Bc2 {[%emt 00:00:06] [%clk
00:01:13]} 32. Rc1 {[%emt 00:00:01] [%clk 00:00:08]} Bxa4 {[%emt 00:00:03] [%clk
00:01:13]} 33. Bxa4 {[%emt 00:00:01] [%clk 00:00:08]} Rxb2+ {[%clk 00:01:14]}
34. Rc2 {[%emt 00:00:05] [%clk 00:00:05]} Rb4 {[%emt 00:00:01] [%clk 00:01:14]}
35. Ra2 {[%clk 00:00:06]} b5 {[%emt 00:00:03] [%clk 00:01:14]} 36. Bc2 {[%emt
00:00:01] [%clk 00:00:07]} c4 {[%emt 00:00:01] [%clk 00:01:14]} 37. Ke2 {[%clk
00:00:08]} g6 {[%emt 00:00:02] [%clk 00:01:15]} 38. Kd2 {[%emt 00:00:01] [%clk
00:00:10]} c3+ {[%emt 00:00:12] [%clk 00:01:04]} 39. Kxc3 {[%clk 00:00:10]} Rc4+
{[%emt 00:00:01] [%clk 00:01:06]} 40. Kd2 {[%emt 00:00:01] [%clk 00:00:11]} h5
{[%emt 00:00:02] [%clk 00:01:06]} 41. Rb2 {[%emt 00:00:03] [%clk 00:00:10]} h4
{[%emt 00:00:04] [%clk 00:01:04]} 42. gxh4 {[%emt 00:00:03] [%clk 00:00:09]}
Rxh4 {[%clk 00:01:05]} 43. Bd3 {[%emt 00:00:02] [%clk 00:00:08]} b4 {[%emt
00:00:02] [%clk 00:01:06]} 44. Ke2 {[%emt 00:00:02] [%clk 00:00:08]} f5 {[%emt
00:00:01] [%clk 00:01:07]} 45. e4 {[%emt 00:00:02] [%clk 00:00:08]} 1-0

[Site "Europe Echecs"]

[Event "Championnat d'Europe de Blitz"]
[Date "2024.12.09"]
[White "Kusiak, Matej"]
[Black "Mamedov, Rauf"]
[WhiteElo "2227"]
[BlackElo "2656"]
[Round "2.7"]
[Result "0-1"]
[TimeControl "180+2"]

1. e4 {[%emt 00:00:05] [%clk 00:03:02]} c5 {[%clk 00:03:04]} 2. Nf3 {[%clk
00:03:02]} Nc6 {[%emt 00:00:02] [%clk 00:03:04]} 3. d4 {[%emt 00:00:01] [%clk
00:03:03]} cxd4 {[%clk 00:03:05]} 4. Nxd4 {[%emt 00:00:02] [%clk 00:03:03]} g6
{[%clk 00:03:06]} 5. c4 {[%emt 00:00:22] [%clk 00:02:43]} Bg7 {[%emt 00:00:02]
[%clk 00:03:07]} 6. Be3 {[%emt 00:00:02] [%clk 00:02:44]} Qb6 {[%emt 00:00:01]
[%clk 00:03:08]} 7. Nb5 {[%emt 00:00:12] [%clk 00:02:33]} Qa5+ {[%emt 00:00:01]
[%clk 00:03:09]} 8. N5c3 {[%emt 00:00:04] [%clk 00:02:31]} Nf6 {[%emt 00:00:02]
[%clk 00:03:10]} 9. f3 {[%emt 00:00:06] [%clk 00:02:26]} O-O {[%emt 00:00:02]
[%clk 00:03:10]} 10. Be2 {[%emt 00:00:03] [%clk 00:02:25]} d6 {[%clk 00:03:12]}
11. O-O {[%emt 00:00:02] [%clk 00:02:25]} Be6 {[%clk 00:03:13]} 12. Nd2 {[%emt
00:00:20] [%clk 00:02:07]} Rfc8 {[%emt 00:00:11]} 13. Rc1 {[%clk 00:01:59]} Ne5
{[%emt 00:00:11] [%clk 00:03:06]} 14. b3 {[%emt 00:00:04] [%clk 00:01:57]} a6
{[%emt 00:00:03] [%clk 00:03:05]} 15. Nd5 {[%emt 00:00:03] [%clk 00:01:54]} Bxd5
{[%emt 00:00:23] [%clk 00:02:45]} 16. exd5 {[%emt 00:00:09] [%clk 00:01:47]}
Qxa2 {[%emt 00:00:28] [%clk 00:02:19]} 17. Ra1 {[%emt 00:00:14] [%clk 00:01:35]}
Qb2 {[%emt 00:00:01] [%clk 00:02:21]} 18. h3 {[%emt 00:00:33] [%clk 00:01:04]}
Qc3 {[%emt 00:00:04] [%clk 00:02:18]} 19. Bf2 {[%emt 00:00:08] [%clk 00:00:57]}
Nd3 {[%emt 00:00:11] [%clk 00:02:10]} 20. Bxd3 {[%emt 00:00:05] [%clk 00:00:55]}
Qxd3 {[%emt 00:00:01] [%clk 00:02:11]} 21. Ra2 {[%emt 00:00:07] [%clk 00:00:50]}
Qf5 {[%emt 00:00:41] [%clk 00:01:32]} 22. Re1 {[%emt 00:00:14] [%clk 00:00:38]}
Re8 {[%clk 00:01:34]} 23. Ne4 {[%emt 00:00:07] [%clk 00:00:33]} Nxe4 {[%emt
00:00:03] [%clk 00:01:32]} 24. Rxe4 {[%clk 00:00:34]} Bf6 {[%emt 00:00:17] [%clk
00:01:17]} 25. b4 {[%emt 00:00:09] [%clk 00:00:27]} Rac8 {[%emt 00:00:04] [%clk
00:01:15]} 26. c5 {[%emt 00:00:01] [%clk 00:00:28]} Red8 {[%emt 00:00:11] [%clk
00:01:06]} 27. g4 {[%emt 00:00:22] [%clk 00:00:08]} Qd7 {[%emt 00:00:01] [%clk
00:01:07]} 28. Rd2 {[%emt 00:00:04] [%clk 00:00:05]} a5 {[%clk 00:01:09]} 29. c6
{[%emt 00:00:04] [%clk 00:00:04]} bxc6 {[%emt 00:00:01] [%clk 00:01:10]} 30.
bxa5 {[%clk 00:00:05]} c5 {[%emt 00:00:02] [%clk 00:01:10]} 31. Ra2 {[%clk
00:00:05]} Ra8 {[%emt 00:00:08] [%clk 00:01:05]} 32. a6 {[%emt 00:00:01] [%clk
00:00:06]} Ra7 {[%emt 00:00:01] [%clk 00:01:05]} 33. Rea4 {[%clk 00:00:07]} Rda8
{[%clk 00:01:07]} 34. Qd3 {[%clk 00:00:08]} Rb8 {[%emt 00:00:22] [%clk
00:00:48]} 35. Kg2 {[%emt 00:00:01] [%clk 00:00:09]} Rb6 {[%emt 00:00:11] [%clk
00:00:38]} 36. h4 {[%emt 00:00:02] [%clk 00:00:09]} e6 {[%emt 00:00:15] [%clk
00:00:27]} 37. dxe6 {[%clk 00:00:10]} Qxe6 {[%clk 00:00:28]} 38. Re2 {[%emt
00:00:02] [%clk 00:00:09]} Qd7 {[%clk 00:00:30]} 39. Rea2 {[%emt 00:00:02] [%clk
00:00:10]} Be5 {[%emt 00:00:03] [%clk 00:00:29]} 40. Qd5 {[%emt 00:00:02] [%clk
00:00:10]} Qe6 {[%emt 00:00:03] [%clk 00:00:29]} 41. Qe4 {[%emt 00:00:03] [%clk
00:00:07]} d5 {[%emt 00:00:03] [%clk 00:00:29]} 42. Qd3 {[%emt 00:00:04] [%clk
00:00:05]} d4 {[%clk 00:00:31]} 43. Qe4 {[%emt 00:00:01] [%clk 00:00:06]} Bf6
{[%emt 00:00:05] [%clk 00:00:28]} 44. Qc2 {[%emt 00:00:02] [%clk 00:00:05]}
Rbxa6 {[%emt 00:00:03] [%clk 00:00:28]} 45. Rxa6 {[%emt 00:00:01] [%clk
00:00:05]} Rxa6 {[%clk 00:00:29]} 46. Rxa6 {[%emt 00:00:02] [%clk 00:00:07]}
Qxa6 {[%clk 00:00:31]} 47. Qxc5 {[%emt 00:00:02] [%clk 00:00:07]} Qe2 {[%emt
00:00:08] [%clk 00:00:24]} 48. g5 {[%emt 00:00:03] [%clk 00:00:06]} Bg7 {[%emt
00:00:03] [%clk 00:00:23]} 49. Qd5 {[%emt 00:00:05] [%clk 00:00:04]} d3 {[%emt
00:00:04] [%clk 00:00:20]} 50. Qd8+ {[%clk 00:00:05]} Bf8 {[%clk 00:00:22]} 51.
Kg3 {[%clk 00:00:06]} d2 {[%emt 00:00:03] [%clk 00:00:21]} 52. Bc5 {[%emt
00:00:03] [%clk 00:00:05]} Qe5+ {[%clk 00:00:22]} 53. f4 {[%clk 00:00:07]} Qxc5
{[%emt 00:00:06] [%clk 00:00:18]} 54. Qxd2 {[%emt 00:00:01] [%clk 00:00:08]} Qf5
{[%emt 00:00:04] [%clk 00:00:16]} 55. Qe3 {[%emt 00:00:03] [%clk 00:00:08]} h5
{[%emt 00:00:03] [%clk 00:00:15]} 56. gxh6 {[%emt 00:00:03]} Bxh6 {[%emt
00:00:01] [%clk 00:00:15]} 57. Qd4 {[%emt 00:00:03] [%clk 00:00:06]} Bg7 {[%emt
00:00:02] [%clk 00:00:16]} 58. Qd6 {[%emt 00:00:01] [%clk 00:00:06]} Bf6 {[%emt
00:00:02] [%clk 00:00:17]} 59. Qb8+ {[%emt 00:00:02] [%clk 00:00:06]} Kg7 {[%emt
00:00:01] [%clk 00:00:17]} 60. Qd6 {[%emt 00:00:01] [%clk 00:00:07]} Qh5 {[%emt
00:00:03] [%clk 00:00:18]} 0-1

[Site "Europe Echecs"]

[Event "Championnat d'Europe de Blitz"]
[Date "2024.12.09"]
[White "Jobava, Baadur"]
[Black "Rodriguez Fontecha, Marcos"]
[WhiteElo "2578"]
[BlackElo "2278"]
[Round "2.8"]
[Result "1-0"]
[TimeControl "180+2"]

1. b3 {[%emt 00:00:04] [%clk 00:03:02]} d5 {[%clk 00:03:03]} 2. Bb2 {[%clk
00:03:03]} Bf5 {[%emt 00:00:01] [%clk 00:03:03]} 3. d3 {[%clk 00:03:04]} e6
{[%emt 00:00:03] [%clk 00:03:02]} 4. Nd2 {[%emt 00:00:02] [%clk 00:03:05]} Nf6
{[%emt 00:00:02] [%clk 00:03:01]} 5. g3 {[%emt 00:00:02] [%clk 00:03:06]} Nbd7
{[%emt 00:00:09] [%clk 00:02:54]} 6. Bg2 {[%emt 00:00:01] [%clk 00:03:06]} h6
{[%emt 00:00:08] [%clk 00:02:48]} 7. e4 {[%emt 00:00:02] [%clk 00:03:07]} dxe4
{[%emt 00:00:08] [%clk 00:02:42]} 8. dxe4 {[%emt 00:00:01] [%clk 00:03:08]} Bg4
{[%emt 00:00:06] [%clk 00:02:38]} 9. f3 {[%emt 00:00:02] [%clk 00:03:08]} Bh5
{[%clk 00:02:39]} 10. Nh3 {[%emt 00:00:04] [%clk 00:03:06]} e5 {[%emt 00:00:09]
[%clk 00:02:32]} 11. O-O {[%emt 00:00:02] [%clk 00:03:06]} Bc5+ {[%emt 00:00:03]
[%clk 00:02:31]} 12. Kh1 {[%clk 00:03:07]} Qe7 {[%emt 00:00:07] [%clk 00:02:26]}
13. Qe2 {[%emt 00:00:05] [%clk 00:03:04]} O-O {[%emt 00:00:07] [%clk 00:02:21]}
14. Rad1 {[%emt 00:00:03] [%clk 00:03:04]} Rad8 {[%emt 00:00:02] [%clk
00:02:20]} 15. Nf2 {[%emt 00:00:03] [%clk 00:03:04]} c6 {[%emt 00:00:08] [%clk
00:02:14]} 16. Nd3 {[%emt 00:00:02] [%clk 00:03:04]} Bd4 {[%emt 00:00:18] [%clk
00:01:58]} 17. Bxd4 {[%emt 00:00:05] [%clk 00:03:01]} exd4 {[%emt 00:00:01]
[%clk 00:01:58]} 18. Rde1 {[%emt 00:00:24] [%clk 00:02:39]} Rfe8 {[%emt
00:00:12] [%clk 00:01:49]} 19. Qf2 {[%emt 00:00:15] [%clk 00:02:26]} Ne5 {[%emt
00:00:24] [%clk 00:01:27]} 20. h3 {[%emt 00:00:02] [%clk 00:02:26]} Nxd3 {[%emt
00:00:13] [%clk 00:01:16]} 21. cxd3 {[%emt 00:00:01] [%clk 00:02:27]} Bg6 {[%emt
00:00:07] [%clk 00:01:11]} 22. f4 {[%emt 00:00:01] [%clk 00:02:27]} Qc5 {[%emt
00:00:07] [%clk 00:01:06]} 23. Nf3 {[%emt 00:00:07] [%clk 00:02:22]} Qc3 {[%emt
00:00:14] [%clk 00:00:54]} 24. Ne5 {[%emt 00:00:02] [%clk 00:02:22]} Bh7 {[%emt
00:00:04] [%clk 00:00:53]} 25. Rc1 {[%emt 00:00:02] [%clk 00:02:22]} Qa5 {[%clk
00:00:53]} 26. Nf3 {[%emt 00:00:09] [%clk 00:02:16]} Bxe4 {[%emt 00:00:04] [%clk
00:00:51]} 27. dxe4 {[%emt 00:00:08] [%clk 00:02:10]} Nxe4 {[%emt 00:00:01]
[%clk 00:00:52]} 28. Qe1 {[%emt 00:00:02] [%clk 00:02:10]} Nc3 {[%emt 00:00:14]
[%clk 00:00:40]} 29. Qd2 {[%emt 00:01:00] [%clk 00:01:11]} Re2 {[%emt 00:00:02]
[%clk 00:00:40]} 30. Qd3 {[%emt 00:00:02] [%clk 00:01:12]} Qxa2 {[%emt 00:00:03]
[%clk 00:00:39]} 31. Nh4 {[%emt 00:00:33] [%clk 00:00:40]} Rd2 {[%emt 00:00:09]
[%clk 00:00:32]} 32. Qf3 {[%emt 00:00:06] [%clk 00:00:36]} Re8 {[%emt 00:00:12]
[%clk 00:00:23]} 33. Rce1 {[%emt 00:00:04] [%clk 00:00:34]} Ree2 {[%emt
00:00:15] [%clk 00:00:10]} 34. Rxe2 {[%emt 00:00:01] [%clk 00:00:35]} Rxe2
{[%emt 00:00:02] [%clk 00:00:10]} 35. Nf5 {[%clk 00:00:36]} Ne4 {[%emt 00:00:05]
[%clk 00:00:06]} 36. Nxd4 {[%emt 00:00:03] [%clk 00:00:35]} Rf2 {[%emt 00:00:04]
[%clk 00:00:05]} 37. Qxe4 {[%emt 00:00:03] [%clk 00:00:10]} 1-0

[Site "Europe Echecs"]